[Event "55th Rubinstein Memorial-C 2019"]
[Site "Polanica-Zdroj"]
[Date "2019.08.19"]
[Round "3.12"]
[White "Rosa, Antoni"]
[Black "Szydelko, Michal"]
[Result "0-1"]
[ECO "A22"]
[WhiteElo "1528"]
[BlackElo "1752"]
[Annotator "NA RC"]
[PlyCount "124"]
[EventDate "2019.08.17"]
[EventType "swiss"]
[EventCountry "POL"]
[SourceTitle "playchess.com"]
[Source "ChessBase"]
[SourceQuality "1"]
[TimeControl "40/5400+30:1800+30"]

1. c4 {[%emt 0:00:00]} e5 {[%emt 0:00:00]} 2. Nc3 {[%emt 0:00:21]} Nf6 {[%emt 0:00:00]} 3. g3 {[%emt 0:00:33]} d5 {[%emt 0:00:33]} 4. cxd5 {[%emt 0:01:45]} Nxd5 {[%emt 0:00:07]} 5. Qc2 {[%emt 0:01:20]} Nb6 {[%emt 0:08:45]} 6. Bg2 {[%emt 0:05:30]} Be7 {[%emt 0:06:44]} 7. b3 {[%emt 0:06:13]} O-O {[%emt 0:04:48]} 8. Bb2 {[%emt 0:02:36]} Nc6 {[%emt 0:08:13]} 9. Nb5 {[%emt 0:02:50]} Bd7 {[%emt 0:01:23]} 10. Nf3 {[%emt 0:01:06]} f6 {[%emt 0:02:46]} 11. Nc3 {[%emt 0:02:26]} Nb4 {[%emt 0:09:12]} 12. Qc1 {[%emt 0:00:36]} Bc6 {[%emt 0:00:12]} 13. O-O {[%emt 0:02:09]} Qd7 {[%emt 0:02:32]} 14. a3 {[%emt 0:04:26]} N4d5 {[%emt 0:00:13]} 15. b4 {[%emt 0:02:58]} a5 {[%emt 0:02:48]} 16. Nxd5 {[%emt 0:02:47]} Qxd5 {[%emt 0:06:31]} 17. Bc3 {[%emt 0:01:28]} axb4 {[%emt 0:00:13]} 18. Bxb4 {[%emt 0:00:29]} Bxb4 {[%emt 0:00:49]} 19. axb4 {[%emt 0:00:13]} Qb5 {[%emt 0:00:33]} 20. d3 {[%emt 0:02:42]} Qxb4 {[%emt 0:00:22]} 21. Rb1 {[%emt 0:01:39]} Qd6 {[%emt 0:02:44]} 22. Nh4 {[%emt 0:02:42]} Bxg2 {[%emt 0:00:47]} 23. Kxg2 {[%emt 0:00:08]} Rfc8 {[%emt 0:05:33]} 24. Qb2 {[%emt 0:02:52]} Qd5+ {[%emt 0:00:16]} 25. Kg1 {[%emt 0:00:39]} Ra2 {[%emt 0:05:43]} 26. Qb4 {[%emt 0:02:34]} Ra4 {[%emt 0:06:43]} 27. Qe7 {[%emt 0:04:08]} Qf7 {[%emt 0:01:41]} 28. Nf5 {[%emt 0:00:33]} Nd5 {[%emt 0:22:11]} 29. Qc5 {[%emt 0:06:21]} c6 {[%emt 0:01:27]} 30. Nd6 {[%emt 0:01:02]} Qf8 {[%emt 0:00:25]} 31. Rxb7 {[%emt 0:00:36]} Ra6 {[%emt 0:00:43]} 32. Rfb1 {[%emt 0:01:52]} Rd8 {[%emt 0:00:22]} 33. Ne4 {[%emt 0:00:30]} Qxc5 {[%emt 0:00:10]} 34. Nxc5 {[%emt 0:00:07]} Raa8 {[%emt 0:00:59]} 35. Ne6 {[%emt 0:02:49]} Re8 {[%emt 0:00:01]} 36. Nxg7 {[%emt 0:01:23]} Re7 {[%emt 0:00:06]} 37. Nf5 {[%emt 0:01:46]} Rxb7 {[%emt 0:00:47]} 38. Rxb7 {[%emt 0:00:20]} Ra2 {[%emt 0:00:03]} 39. Rg7+ {[%emt 0:03:41]} Kf8 {[%emt 0:00:16]} 40. e3 {[%emt 0:01:28]} Nb4 {[%emt 0:00:17]} 41. Rd7 {[%emt 0:31:30]} Rd2 {[%emt 0:30:40]} 42. Rd6 {[%emt 0:01:03]} Kf7 {[%emt 0:00:17]} 43. d4 {[%emt 0:03:39]} e4 {[%emt 0:00:19]} 44. Nh6+ {[%emt 0:04:50]} Ke7 {[%emt 0:00:09]} 45. Nf5+ {[%emt 0:00:31]} Kf7 {[%emt 0:00:04]} 46. h4 {[%emt 0:07:35]} Rc2 {[%emt 0:01:31]} 47. g4 {[%emt 0:03:16]} Nd3 {[%emt 0:00:16]} 48. Rd7+ {[%emt 0:00:27]} Kf8 {[%emt 0:01:33]} 49. Rxh7 {[%emt 0:01:24]} Nxf2 {[%emt 0:01:01]} 50. Rg7 {[%emt 0:01:06]} Nh3+ {[%emt 0:00:12]} 51. Kf1 {[%emt 0:00:43]} Rf2+ {[%emt 0:00:23]} 52. Ke1 {[%emt 0:00:28]} Rxf5 {[%emt 0:00:07]} 53. gxf5 {[%emt 0:00:27]} Kxg7 {[%emt 0:00:01]} 54. Kf1 {[%emt 0:00:28]} Kh6 {[%emt 0:00:22]} 55. Kg2 {[%emt 0:00:14]} Ng5 {[%emt 0:01:42]} 56. hxg5+ {[%emt 0:00:48]} Kxg5 {[%emt 0:00:01]} 57. Kg3 {[%emt 0:02:24]} Kxf5 {[%emt 0:00:04]} 58. Kh4 {[%emt 0:00:41]} Kg6 {[%emt 0:00:08]} 59. Kg3 {[%emt 0:00:57]} Kg5 {[%emt 0:00:13]} 60. Kh3 {[%emt 0:00:22]} f5 {[%emt 0:00:11]} 61. Kg3 {[%emt 0:00:38]} f4+ {[%emt 0:00:14]} 62. exf4+ {[%emt 0:00:25]} Kf5 {[%emt 0:00:02]} 0-1

[Event "55th Rubinstein Memorial-C 2019"]
[Site "Polanica-Zdroj"]
[Date "2019.08.19"]
[Round "3.13"]
[White "Ursnik, Patryk"]
[Black "Zgoda, Damian"]
[Result "0-1"]
[ECO "B06"]
[WhiteElo "1497"]
[BlackElo "1725"]
[Annotator "NA RC"]
[PlyCount "78"]
[EventDate "2019.08.17"]
[EventType "swiss"]
[EventCountry "POL"]
[SourceTitle "playchess.com"]
[Source "ChessBase"]
[SourceQuality "1"]
[TimeControl "40/5400+30:1800+30"]

1. e4 {[%emt 0:00:09]} g6 {[%emt 0:00:00]} 2. d4 {[%emt 0:00:09]} Bg7 {[%emt 0:00:00]} 3. c3 {[%emt 0:00:14]} d6 {[%emt 0:00:29]} 4. Nf3 {[%emt 0:00:31]} e6 {[%emt 0:01:06]} 5. Be3 {[%emt 0:02:50]} Ne7 {[%emt 0:00:29]} 6. Be2 {[%emt 0:00:25]} b6 {[%emt 0:00:51]} 7. Nbd2 {[%emt 0:00:47]} Bb7 {[%emt 0:01:19]} 8. Qc2 {[%emt 0:00:44]} Nd7 {[%emt 0:00:53]} 9. Rc1 {[%emt 0:01:19]} Rc8 {[%emt 0:04:51]} 10. O-O {[%emt 0:00:21]} O-O {[%emt 0:00:10]} 11. a4 {[%emt 0:00:06]} h6 {[%emt 0:07:08]} 12. a5 {[%emt 0:01:49]} f5 {[%emt 0:03:54]} 13. exf5 {[%emt 0:00:43]} exf5 {[%emt 0:00:47]} 14. a6 {[%emt 0:00:29]} Bd5 {[%emt 0:06:44]} 15. Nb1 {[%emt 0:01:00]} f4 {[%emt 0:03:18]} 16. Bd2 {[%emt 0:00:09]} g5 {[%emt 0:01:28]} 17. Ne1 {[%emt 0:11:06]} c5 {[%emt 0:12:07]} 18. dxc5 {[%emt 0:02:34]} dxc5 {[%emt 0:00:52]} 19. c4 {[%emt 0:01:01]} Bc6 {[%emt 0:03:20]} 20. Bg4 {[%emt 0:00:10]} Ne5 {[%emt 0:09:05]} 21. Bxc8 {[%emt 0:07:41]} Qxc8 {[%emt 0:00:11]} 22. f3 {[%emt 0:02:14]} g4 {[%emt 0:02:40]} 23. Bc3 {[%emt 0:02:50]} Nxc4 {[%emt 0:09:39]} 24. Bxg7 {[%emt 0:00:09]} Ne3 {[%emt 0:00:16]} 25. Qc3 {[%emt 0:04:03]} Rf7 {[%emt 0:00:17]} 26. Bxh6 {[%emt 0:01:49]} Nxf1 {[%emt 0:03:11]} 27. Kxf1 {[%emt 0:00:43]} Qf5 {[%emt 0:00:19]} 28. Rd1 {[%emt 0:04:22]} Nd5 {[%emt 0:01:04]} 29. Rxd5 {[%emt 0:01:22]} Bxd5 {[%emt 0:00:23]} 30. fxg4 {[%emt 0:01:54]} Qxb1 {[%emt 0:00:50]} 31. Qe5 {[%emt 0:00:42]} Qe4 {[%emt 0:02:42]} 32. Qxe4 {[%emt 0:00:53]} Bxe4 {[%emt 0:00:06]} 33. Kf2 {[%emt 0:00:26]} Kh7 {[%emt 0:00:30]} 34. Bg5 {[%emt 0:00:44]} Kg6 {[%emt 0:00:29]} 35. h4 {[%emt 0:00:13]} b5 {[%emt 0:06:03]} 36. Nf3 {[%emt 0:00:16]} Bxf3 {[%emt 0:00:16]} 37. Kxf3 {[%emt 0:00:08]} c4 {[%emt 0:00:54]} 38. Bxf4 {[%emt 0:00:09]} b4 {[%emt 0:00:31]} 39. h5+ {[%emt 0:00:58]} Kg7 {[%emt 0:01:11]} 0-1

[Event "55th Rubinstein Memorial-C 2019"]
[Site "Polanica-Zdroj"]
[Date "2019.08.19"]
[Round "3.14"]
[White "Musial, Igor"]
[Black "Jaroszuk, Marcin"]
[Result "1-0"]
[ECO "C72"]
[WhiteElo "1717"]
[BlackElo "1496"]
[Annotator "NA RC"]
[PlyCount "63"]
[EventDate "2019.08.17"]
[EventType "swiss"]
[EventCountry "POL"]
[SourceTitle "playchess.com"]
[Source "ChessBase"]
[SourceQuality "1"]
[TimeControl "40/5400+30:1800+30"]

1. e4 {[%emt 0:00:00]} e5 {[%emt 0:00:00]} 2. Nf3 {[%emt 0:00:00]} Nc6 {[%emt 0:00:00]} 3. Bb5 {[%emt 0:00:00]} a6 {[%emt 0:00:00]} 4. Ba4 {[%emt 0:00:00]} d6 {[%emt 0:00:15]} 5. O-O {[%emt 0:00:13]} Bg4 {[%emt 0:00:21]} 6. h3 {[%emt 0:01:03]} h5 {[%emt 0:00:21]} 7. d4 {[%emt 0:00:18]} b5 {[%emt 0:00:25]} 8. Bb3 {[%emt 0:01:26]} Nxd4 {[%emt 0:00:25]} 9. hxg4 {[%emt 0:01:01]} hxg4 {[%emt 0:00:11]} 10. Ng5 {[%emt 0:00:16]} Nh6 {[%emt 0:00:07]} 11. f4 {[%emt 0:21:23]} Be7 {[%emt 0:03:22]} 12. Bxf7+ {[%emt 0:27:11]} Nxf7 {[%emt 0:29:50]} 13. Nxf7 {[%emt 0:00:12]} Kxf7 {[%emt 0:00:10]} 14. fxe5+ {[%emt 0:00:07]} Nf3+ {[%emt 0:00:14]} 15. gxf3 {[%emt 0:00:37]} g3 {[%emt 0:03:15]} 16. f4 {[%emt 0:07:02]} c6 {[%emt 0:23:20]} 17. Be3 {[%emt 0:07:25]} Qc8 {[%emt 0:00:45]} 18. f5 {[%emt 0:06:37]} dxe5 {[%emt 0:02:52]} 19. Qg4 {[%emt 0:00:51]} Rh4 {[%emt 0:04:11]} 20. Qg6+ {[%emt 0:00:17]} Kf8 {[%emt 0:01:01]} 21. Nd2 {[%emt 0:01:54]} c5 {[%emt 0:06:13]} 22. Qxg3 {[%emt 0:04:14]} Bf6 {[%emt 0:00:34]} 23. Bg5 {[%emt 0:02:10]} Qd8 {[%emt 0:04:20]} 24. Qxh4 {[%emt 0:05:12]} Bxg5 {[%emt 0:01:31]} 25. Qh8+ {[%emt 0:00:09]} Kf7 {[%emt 0:00:42]} 26. Qxd8 {[%emt 0:00:06]} Rxd8 {[%emt 0:00:06]} 27. Nf3 {[%emt 0:00:17]} Be3+ {[%emt 0:01:13]} 28. Kg2 {[%emt 0:00:17]} Bf4 {[%emt 0:01:44]} 29. Rad1 {[%emt 0:00:12]} Rh8 {[%emt 0:00:32]} 30. Rd7+ {[%emt 0:00:09]} Ke8 {[%emt 0:00:31]} 31. Rfd1 {[%emt 0:00:41]} Rh5 {[%emt 0:01:58]} 32. Rd8+ {[%emt 0:00:10]} 1-0

[Event "55th Rubinstein Memorial-C 2019"]
[Site "Polanica-Zdroj"]
[Date "2019.08.19"]
[Round "3.15"]
[White "Zalega, Maciej"]
[Black "Witkowski, Krzysztof"]
[Result "1/2-1/2"]
[ECO "B34"]
[WhiteElo "1429"]
[BlackElo "1707"]
[Annotator "NA RC"]
[PlyCount "90"]
[EventDate "2019.08.17"]
[EventType "swiss"]
[EventCountry "POL"]
[SourceTitle "playchess.com"]
[Source "ChessBase"]
[SourceQuality "1"]
[TimeControl "40/5400+30:1800+30"]

1. e4 {[%emt 0:00:00]} c5 {[%emt 0:00:00]} 2. Nf3 {[%emt 0:00:00]} Nc6 {[%emt 0:00:00]} 3. d4 {[%emt 0:00:00]} cxd4 {[%emt 0:00:00]} 4. Nxd4 {[%emt 0:00:00]} Nf6 {[%emt 0:00:00]} 5. Nc3 {[%emt 0:00:00]} e5 {[%emt 0:00:00]} 6. Ndb5 {[%emt 0:00:10]} d6 {[%emt 0:00:00]} 7. Nd5 {[%emt 0:00:13]} Nxd5 {[%emt 0:00:03]} 8. exd5 {[%emt 0:00:03]} Nb8 {[%emt 0:00:12]} 9. a4 {[%emt 0:00:58]} Be7 {[%emt 0:00:31]} 10. Be2 {[%emt 0:00:50]} O-O {[%emt 0:00:19]} 11. O-O {[%emt 0:01:07]} f5 {[%emt 0:01:31]} 12. f4 {[%emt 0:01:34]} a6 {[%emt 0:00:20]} 13. Na3 {[%emt 0:01:06]} Nd7 {[%emt 0:07:28]} 14. Nc4 {[%emt 0:09:25]} e4 {[%emt 0:03:23]} 15. a5 {[%emt 0:03:30]} b5 {[%emt 0:01:15]} 16. axb6 {[%emt 0:03:57]} Nxb6 {[%emt 0:00:13]} 17. Na5 {[%emt 0:03:55]} Qc7 {[%emt 0:09:08]} 18. Be3 {[%emt 0:05:49]} Bf6 {[%emt 0:06:37]} 19. c3 {[%emt 0:15:54]} Bd7 {[%emt 0:04:39]} 20. Qb3 {[%emt 0:06:07]} Rfb8 {[%emt 0:02:41]} 21. Bxb6 {[%emt 0:07:03]} Rxb6 {[%emt 0:02:18]} 22. Qc4 {[%emt 0:07:46]} Qa7 {[%emt 0:01:21]} 23. Kh1 {[%emt 0:05:26]} Bb5 {[%emt 0:01:01]} 24. Qa2 {[%emt 0:02:41]} Bxe2 {[%emt 0:02:08]} 25. Nc6 {[%emt 0:01:08]} Qb7 {[%emt 0:08:32]} 26. Rfe1 {[%emt 0:00:05]} Rxb2 {[%emt 0:08:51]} 27. Qa3 {[%emt 0:00:05]} Bh5 {[%emt 0:13:06]} 28. Qxd6 {[%emt 0:00:35]} Bf7 {[%emt 0:01:32]} 29. Rac1 {[%emt 0:01:16]} Rc8 {[%emt 0:04:50]} 30. h3 {[%emt 0:01:36]} Kh8 {[%emt 0:05:00]} 31. c4 {[%emt 0:03:04]} Qc7 {[%emt 0:02:17]} 32. Qxc7 {[%emt 0:00:21]} Rxc7 {[%emt 0:00:06]} 33. Ne5 {[%emt 0:00:01]} Bxe5 {[%emt 0:03:24]} 34. fxe5 {[%emt 0:00:01]} Kg8 {[%emt 0:04:43]} 35. e6 {[%emt 0:00:05]} Be8 {[%emt 0:00:55]} 36. d6 {[%emt 0:00:03]} Rcb7 {[%emt 0:00:35]} 37. Rcd1 {[%emt 0:00:40]} Rb8 {[%emt 0:02:49]} 38. d7 {[%emt 0:00:22]} Rd8 {[%emt 0:00:07]} 39. Rd5 {[%emt 0:03:56]} g6 {[%emt 0:03:03]} 40. c5 {[%emt 0:06:31]} Rc2 {[%emt 0:00:29]} 41. Ra1 {[%emt 0:31:42]} Kf8 {[%emt 0:31:14]} 42. Rxa6 {[%emt 0:01:26]} Ke7 43. c6 e3 44. Kg1 Rc1+ 45. Kh2 e2 1/2-1/2

[Event "55th Rubinstein Memorial-C 2019"]
[Site "Polanica-Zdroj"]
[Date "2019.08.19"]
[Round "3.16"]
[White "Rzenca, Jerzy"]
[Black "Kurtycz, Maciej"]
[Result "1/2-1/2"]
[ECO "B23"]
[WhiteElo "1419"]
[BlackElo "1689"]
[Annotator "NA RC"]
[PlyCount "66"]
[EventDate "2019.08.17"]
[EventType "swiss"]
[EventCountry "POL"]
[SourceTitle "playchess.com"]
[Source "ChessBase"]
[SourceQuality "1"]
[TimeControl "40/5400+30:1800+30"]

1. e4 {[%emt 0:07:16]} c5 {[%emt 0:00:00]} 2. Nc3 {[%emt 0:00:10]} a6 {[%emt 0:00:03]} 3. f4 {[%emt 0:00:40]} e6 {[%emt 0:00:16]} 4. Nf3 {[%emt 0:02:13]} Nc6 {[%emt 0:00:19]} 5. g3 {[%emt 0:00:17]} d5 {[%emt 0:00:53]} 6. d3 {[%emt 0:01:43]} Be7 {[%emt 0:00:13]} 7. Bg2 {[%emt 0:00:13]} Nf6 {[%emt 0:00:18]} 8. O-O {[%emt 0:00:35]} O-O {[%emt 0:00:07]} 9. Ne5 {[%emt 0:19:22]} d4 {[%emt 0:02:47]} 10. Nxc6 {[%emt 0:00:30]} bxc6 {[%emt 0:00:11]} 11. Na4 {[%emt 0:01:21]} Nd7 {[%emt 0:14:30]} 12. b3 {[%emt 0:01:47]} Nb6 {[%emt 0:01:33]} 13. Nxb6 {[%emt 0:02:14]} Qxb6 {[%emt 0:00:02]} 14. e5 {[%emt 0:00:24]} a5 {[%emt 0:01:43]} 15. a4 {[%emt 0:00:07]} f5 {[%emt 0:05:54]} 16. g4 {[%emt 0:08:03]} fxg4 {[%emt 0:00:37]} 17. Qxg4 {[%emt 0:00:05]} Bd7 {[%emt 0:00:40]} 18. Be4 {[%emt 0:01:51]} Rf5 {[%emt 0:08:55]} 19. Bxf5 {[%emt 0:00:55]} exf5 {[%emt 0:00:01]} 20. Qg3 {[%emt 0:01:03]} Be6 {[%emt 0:00:20]} 21. Ba3 {[%emt 0:00:44]} Kh8 {[%emt 0:00:59]} 22. Kf2 {[%emt 0:01:01]} Qd8 {[%emt 0:02:11]} 23. Ke2 {[%emt 0:01:14]} Bd5 {[%emt 0:00:47]} 24. Rg1 {[%emt 0:03:01]} g6 {[%emt 0:00:05]} 25. Qh3 {[%emt 0:03:11]} Qe8 {[%emt 0:02:04]} 26. Rg3 {[%emt 0:08:01]} Qf7 {[%emt 0:00:15]} 27. Bc1 {[%emt 0:09:21]} Re8 {[%emt 0:10:29]} 28. Bd2 {[%emt 0:07:11]} Bd8 {[%emt 0:00:11]} 29. Be1 {[%emt 0:00:30]} Kg7 {[%emt 0:00:55]} 30. Rg1 {[%emt 0:01:05]} g5 {[%emt 0:00:32]} 31. fxg5 {[%emt 0:02:07]} Rxe5+ {[%emt 0:00:08]} 32. Kd2 {[%emt 0:01:02]} Re6 {[%emt 0:02:51]} 33. Bh4 {[%emt 0:02:26]} Re3 {[%emt 0:01:16]} 1/2-1/2

[Event "55th Rubinstein Memorial-C 2019"]
[Site "Polanica-Zdroj"]
[Date "2019.08.19"]
[Round "3.17"]
[White "Krzyzosiak, Anna"]
[Black "Rakita, Efim"]
[Result "1/2-1/2"]
[ECO "C54"]
[WhiteElo "1590"]
[BlackElo "1960"]
[Annotator "NA RC"]
[PlyCount "77"]
[EventDate "2019.08.17"]
[EventType "swiss"]
[EventCountry "POL"]
[SourceTitle "playchess.com"]
[Source "ChessBase"]
[SourceQuality "1"]
[TimeControl "40/5400+30:1800+30"]

{[%evp 8,77,28,14,11,32767,32767,32767,32767,32767,32767,4,33,32767,32767,-6,32767,32767,32767,32767,32767,32767,32767,12,29,32767,32767,32767,32767,0,32767,4,22,0,-2,0,37,32767,18,33,20,-93,35,32767,36,33,226,19,26,0,0,0,32767,32767,0,0,0,0,0,0,0,0,32767,32767,32767,32767,0,32767,0,0,0,0]} 1. e4 {[%emt 0:00:00]} e5 {[%emt 0:00:00]} 2. Nf3 {[%emt 0:00:00]} Nc6 {[%emt 0:00:00]} 3. Bc4 {[%emt 0:00:00]} Bc5 {[%emt 0:00:03]} 4. c3 {[%emt 0:00:03]} Nf6 {[%emt 0:00:08]} 5. d3 {[%emt 0:00:07]} d6 {[%emt 0:00:47]} 6. O-O {[%emt 0:00:51]} Bg4 {[%emt 0:01:29]} 7. Be3 {[%emt 0:03:41]} Bb6 {[%emt 0:00:18]} 8. Nbd2 {[%emt 0:04:47]} O-O {[%emt 0:00:23]} 9. h3 {[%emt 0:05:18] C54: Giuoco Piano: 4 c3 Nf6, main lines with 5 d4 and 5 d3} Be6 {[%emt 0:02:26]} (9... Bh5 10. Re1 h6 11. Bb3 g5 12. Nf1 Bg6 13. Bxb6 axb6 14. Ng3 Kg7 15. d4 Re8 16. dxe5 dxe5 {1-0 (72) Corrales Jimenez,Z (2178)-Alvarez Ferreiro,R (2382) Havana 2014}) 10. Ng5 $146 {[%emt 0:16:12]} ({Predecessor:} 10. Bxe6 fxe6 11. Bxb6 axb6 12. d4 Nd7 13. Re1 Qf6 14. Nf1 Rf7 15. Ng3 Raf8 16. Rc1 Ne7 {0-1 (26) Ruo,A (1608)-Mortola,A (1968) Genova 2014}) 10... Qd7 {[%emt 0:05:23]} 11. b4 {[%emt 0:06:47]} h6 {[%emt 0:00:46]} 12. Nxe6 {[%emt 0:01:19]} fxe6 {[%emt 0:00:03]} 13. a4 {[%emt 0:01:29]} d5 {[%emt 0:01:53]} 14. exd5 {[%emt 0:01:57]} exd5 {[%emt 0:01:53]} 15. Bb3 {[%emt 0:02:32]} Kh7 {[%emt 0:00:59]} 16. a5 {[%emt 0:03:58]} Bxe3 {[%emt 0:00:12]} 17. fxe3 {[%emt 0:00:07]} a6 {[%emt 0:01:26]} 18. d4 {[%emt 0:07:23]} e4 {[%emt 0:01:31]} 19. Qe1 {[%emt 0:01:55]} Ne7 {[%emt 0:03:47]} 20. Qf2 {[%emt 0:07:08]} g6 {[%emt 0:01:19]} 21. Qf4 {[%emt 0:05:59]} Kg7 {[%emt 0:03:31]} 22. Rf2 {[%emt 0:04:34]} g5 {[%emt 0:07:15]} 23. Qe5 {[%emt 0:02:23]} Ng6 {[%emt 0:00:43]} 24. Qf5 {[%emt 0:02:46] [#]} (24. Qh2 $11) 24... Qxf5 {[%emt 0:01:10]} ({Better is} 24... Qd6 $1 $17 25. Raf1 Rae8) 25. Rxf5 {[%emt 0:00:09]} c6 {[%emt 0:00:11]} 26. Raf1 {[%emt 0:01:53]} Nd7 $2 {[%emt 0:02:17] [#]} (26... Ng8 $11) 27. Rxf8 $2 {[%emt 0:02:12]} (27. Nxe4 $1 $18 {[%mdl 512]} Rxf5 (27... dxe4 28. Rf7+) 28. Rxf5) 27... Rxf8 {[%emt 0:00:20]} 28. Rxf8 {[%emt 0:00:25]} Kxf8 {[%emt 0:01:23]} 29. Bd1 {[%emt 0:04:33]} Nf6 {[%emt 0:00:46]} 30. Nb3 {[%emt 0:02:28]} Ne8 {[%emt 0:03:36]} 31. Bh5 {[%emt 0:02:47]} Kg7 {[%emt 0:00:41]} 32. Nc5 {[%emt 0:00:34]} Nd6 $1 {[%emt 0:00:08]} 33. Bxg6 {[%emt 0:01:30]} Kxg6 {[%emt 0:00:02]} 34. g4 {[%emt 0:00:30]} h5 {[%emt 0:03:59]} 35. Kf2 {[%emt 0:00:51]} hxg4 {[%emt 0:00:09]} 36. hxg4 {[%emt 0:00:05]} Kf7 {[%emt 0:00:41]} 37. Kg2 {[%emt 0:01:02]} Ke7 {[%emt 0:00:24]} 38. Kf2 {[%emt 0:00:16]} Ke8 {[%emt 0:01:58]} 39. Ke2 $11 {[%emt 0:01:25]} 1/2-1/2

[Event "55th Rubinstein Memorial-C 2019"]
[Site "Polanica-Zdroj"]
[Date "2019.08.19"]
[Round "3.18"]
[White "Pyka, Roman"]
[Black "Raczek, Krzysztof"]
[Result "1/2-1/2"]
[ECO "E67"]
[WhiteElo "1860"]
[BlackElo "1587"]
[Annotator "NA RC"]
[PlyCount "85"]
[EventDate "2019.08.17"]
[EventType "swiss"]
[EventCountry "POL"]
[SourceTitle "playchess.com"]
[Source "ChessBase"]
[SourceQuality "1"]
[TimeControl "40/5400+30:1800+30"]

{[%evp 8,84,56,37,27,16,32767,32767,32767,32767,32767,22,32767,32767,32767,32767,32767,37,22,32767,13,-118,-116,-99,25,16,32767,32767,32767,32767,32767,32767,32767,32767,32767,32767,32767,122,162,189,159,32767,32767,-207,-201,-218,-158,-222,-208,-156,-129,-118,-75,-117,-119,-127,-83,-79,-56,-77,-31,32767,32767,-5,-2,-6,-6,0,0,0,0,32767,32767,32767,32767,0,0,32767,0]} 1. d4 {[%emt 0:00:27]} Nf6 {[%emt 0:00:00]} 2. Nf3 {[%emt 0:00:08]} g6 {[%emt 0:00:02]} 3. c4 {[%emt 0:00:08]} d6 {[%emt 0:00:06]} 4. Nc3 {[%emt 0:00:07]} Bg7 {[%emt 0:00:06]} 5. g3 {[%emt 0:00:07]} O-O {[%emt 0:00:08]} 6. Bg2 {[%emt 0:00:07]} Nbd7 {[%emt 0:00:09]} 7. O-O {[%emt 0:00:10]} e5 {[%emt 0:00:09]} 8. h3 {[%emt 0:00:09]} Re8 {[%emt 0:00:14]} 9. e4 {[%emt 0:00:37]} exd4 {[%emt 0:00:08]} 10. Nxd4 {[%emt 0:00:09]} Nc5 {[%emt 0:00:11]} 11. Re1 {[%emt 0:00:13]} a5 {[%emt 0:00:09]} 12. b3 {[%emt 0:05:25]} Bd7 {[%emt 0:01:20]} 13. Bb2 {[%emt 0:00:57] E68: King's Indian: Fianchetto: 6...Nbd7 7 0-0 e5 8 e4} (13. a4 h5 14. Bf4 h4 15. gxh4 Nh5 16. Bg5 Qc8 17. Nd5 Bxh3 18. Bf3 Qd7 19. Rb1 Be6 20. Bxh5 Bxd5 21. cxd5 gxh5 {0-1 (47) Ju,W (2579)-Harika,D (2543) Doha 2016}) 13... a4 {[%emt 0:06:27]} 14. b4 $146 {[%emt 0:05:11]} ({Predecessor:} 14. Rb1 $11 axb3 15. axb3 h5 16. Qc2 h4 17. Rbd1 hxg3 18. fxg3 Nh5 19. Qf2 Be5 20. Re3 c6 {0-1 (35) Vakhidov,D (2250)-Iniyan,P (2452) Ahmedabad 2017}) 14... a3 {[%emt 0:00:11]} 15. Bc1 {[%emt 0:00:14]} Ne6 {[%emt 0:00:05]} ({Black should try} 15... Na4 $17 16. Ncb5 Bxb5 17. Nxb5 c6) 16. Be3 {[%emt 0:01:41]} Qc8 {[%emt 0:11:42]} 17. Kh2 {[%emt 0:00:25]} c5 {[%emt 0:01:14]} 18. Ndb5 {[%emt 0:00:46]} Bxb5 {[%emt 0:15:50]} 19. Nxb5 {[%emt 0:00:14]} Rd8 {[%emt 0:00:10]} 20. Nxd6 {[%emt 0:04:20]} Qc7 {[%emt 0:00:30]} 21. e5 {[%emt 0:00:31]} Ne8 {[%emt 0:04:39]} 22. Bxc5 {[%emt 0:04:16]} ({Don't play} 22. Bxb7 $6 Nxd6 23. Bxa8 Nxc4 $14) 22... Bxe5 {[%emt 0:02:57]} 23. Rxe5 {[%emt 0:09:38]} Nxd6 {[%emt 0:00:05]} 24. Qd5 {[%emt 0:05:03]} Nxc4 {[%emt 0:01:06]} 25. Rxe6 {[%emt 0:02:36]} Rxd5 {[%emt 0:00:20]} 26. Bxd5 {[%emt 0:00:28]} fxe6 {[%emt 0:01:14]} 27. Bxe6+ {[%emt 0:00:17]} Kg7 {[%emt 0:00:04]} 28. Bxc4 {[%emt 0:00:20]} Rd8 {[%emt 0:00:04]} 29. Re1 {[%emt 0:00:23] [#]} Rd6 {[%emt 0:02:29]} (29... b5 $142 $1 30. Bxb5 (30. Re7+ $2 Qxe7 31. Bxe7 Re8 $17) 30... Rd2) 30. Re8 {[%emt 0:03:00]} h5 {[%emt 0:01:51]} 31. Bb3 {[%emt 0:04:52]} b6 {[%emt 0:03:23]} 32. Bxd6 {[%emt 0:01:49]} Qxd6 {[%emt 0:00:04]} 33. Re4 {[%emt 0:02:06]} g5 {[%emt 0:02:58]} 34. h4 {[%emt 0:01:51]} g4 {[%emt 0:00:45]} 35. Rf4 {[%emt 0:00:28]} Qd3 {[%emt 0:00:47]} 36. Bc4 $1 {[%emt 0:01:14]} Qc2 {[%emt 0:02:35]} 37. b5 {[%emt 0:00:07]} Kg6 {[%emt 0:00:39]} 38. Kg2 {[%emt 0:00:32]} Qd1 {[%emt 0:00:42]} 39. Bf7+ {[%emt 0:01:12]} Kg7 {[%emt 0:00:12]} 40. Bc4 {[%emt 0:00:27]} Kg6 {[%emt 0:00:23]} 41. Bf7+ {[%emt 0:30:22]} Kg7 {[%emt 0:30:04]} 42. Bc4 {[%emt 0:00:21]} Kg6 $11 {[%emt 0:00:03]} 43. Bf7+ {[%emt 0:00:11]} 1/2-1/2